bitfinex/quotes_ETHUSD_20220123
["timestamp","ask_amount","ask_price","bid_price","bid_amount"]
[1642979470324,0.01247286,2489.8,2488.5,0.72905997]
[1642979470723,1.10754601,2488.7,2488.5,0.72905997]
[1642979470926,1.10754601,2488.7,2488.5,0.13819997]
[1642979471326,1.10754601,2488.7,2488.5,24.08819997]
[1642979473173,1.10754601,2488.7,2488.5,0.13819997]
[1642979473372,1.10754601,2488.7,2488.5,0.62919997]
[1642979473572,1.48315097,2488.9,2488.5,24.58319997]
[1642979473778,4.7984205,2489.6,2488.5,24.68305997]
[1642979473975,0.25337328,2489.9,2488.5,24.68305997]
[1642979474179,0.3,2489.6,2488.5,24.68305997]
[1642979474377,0.25337328,2489.9,2488.5,24.68305997]
[1642979474676,1.10754601,2489.2,2488.9,1.41555506]
[1642979475079,1.10754601,2489.2,2488.5,24.68305997]
[1642979475677,0.25337328,2489.9,2488.6,3.17274385]
[1642979475882,0.04,2489.9,2488.8,0.00832413]
[1642979476081,0.04,2489.9,2489.0,23.95]
[1642979476282,0.04,2489.9,2489.1,3.1211356]
[1642979476545,0.007,2490.4,2489.5,5.30479]
[1642979476730,0.007,2490.4,2490.3,23.95]
[1642979476931,0.04,2490.7,2490.3,23.95]
[1642979478034,0.0387622,2490.7,2490.5,1.48810118]
[1642979478235,0.0387622,2490.7,2490.6,23.95]
[1642979478434,0.0387622,2490.7,2490.1,0.59086]
[1642979478634,0.04035807,2490.7,2490.1,0.59086]
[1642979478836,0.04035807,2490.7,2490.2,23.95]
[1642979479034,0.04035807,2490.7,2490.3,0.09986]
[1642979479235,1.06454601,2490.5,2490.2,23.95]
[1642979479437,1.06454601,2490.5,2490.1,0.491]
[1642979479636,0.0287622,2490.9,2489.8,0.59086]
[1642979479637,0.01912027,2490.9,2489.8,0.59086]
[1642979480039,0.01912027,2490.9,2489.8,0.491]
[1642979480274,1.20359653,2490.3,2489.9,23.95]
[1642979480481,1.20359653,2490.3,2489.5,0.491]
[1642979480679,0.21346595,2490.8,2489.5,0.491]
[1642979480880,0.01912027,2490.9,2489.6,2.37938343]
[1642979481076,0.01912027,2490.9,2489.7,0.491]
[1642979481280,0.01912027,2490.9,2489.8,0.09986]
[1642979481475,0.01912027,2490.9,2489.9,0.491]
[1642979481675,0.01912027,2490.9,2490.5,1.17565576]
[1642979482076,0.01912027,2490.9,2490.2,0.491]
[1642979482678,0.01912027,2490.9,2490.2,0.59086]
[1642979483084,2.027e-05,2490.9,2490.3,23.95]
[1642979483285,0.04,2491.9,2490.4,6.24363237]
[1642979483484,0.04,2491.9,2490.8,1.00438]
[1642979483680,0.04,2491.9,2490.9,0.491]
[1642979483884,0.04,2491.9,2491.0,23.95]
[1642979484145,0.04,2491.9,2491.2,23.95]
[1642979484344,0.04,2491.9,2491.3,0.491]
[1642979484547,1.21771432,2491.9,2491.3,0.491]
[1642979484846,0.04,2491.9,2491.3,24.441]
[1642979485051,7.43,2492.7,2491.5,0.019222]
[1642979485247,7.43,2492.7,2491.6,0.59086]
[1642979485454,7.43,2492.7,2491.7,23.95]
[1642979485757,14.91,2493.5,2492.0,6.132]
[1642979485949,4.08243,2494.3,2493.1,1.54699843]
[1642979485950,0.01213291,2494.3,2493.1,1.54699843]
[1642979486151,0.01213291,2494.3,2493.3,0.00411717]
[1642979486345,7.7517,2494.6,2493.3,0.00411717]
[1642979486346,7.70383291,2494.6,2493.3,0.00397717]
[1642979486547,7.71680817,2494.6,2493.5,0.03893155]
[1642979486747,0.01297526,2494.6,2493.6,0.491]
[1642979486951,0.01297526,2494.6,2494.5,4.35]
[1642979486952,1.44951186,2494.6,2494.5,4.35]
[1642979487249,4.0995,2495.5,2494.5,4.35]
[1642979487250,0.2331,2495.9,2494.6,4.35]
[1642979487458,0.2331,2495.9,2494.7,0.89229108]
[1642979487651,0.20103,2497.2,2495.7,7.95]
[1642979487652,0.20935191,2497.2,2495.7,7.95]
[1642979487886,0.02,2498.4,2495.7,7.95]
[1642979487887,0.02,2498.4,2495.8,6.88426403]
[1642979488078,0.02,2498.4,2497.1,16.82547184]
[1642979488290,0.02,2498.4,2498.2,1.23155534]
[1642979488291,0.02330018,2498.3,2498.2,1.23155534]
[1642979488478,0.10161135,2499.8,2498.2,0.491]
[1642979489076,0.10161135,2499.8,2497.4,6.132]
[1642979489077,0.10161135,2499.8,2497.5,0.01626378]
[1642979489278,0.10161135,2499.8,2497.2,0.491]
[1642979489279,0.28788181,2499.7,2497.2,0.491]
[1642979489478,0.08685181,2498.2,2496.6,5.0]
[1642979489677,1.98642554,2498.1,2495.6,23.95]
[1642979489885,0.01243792,2497.3,2495.6,23.95]
[1642979490081,0.01243792,2497.3,2495.5,2.7280686]
[1642979490082,1.21880676,2495.9,2495.5,2.7280686]
[1642979490580,6.76e-06,2495.9,2495.5,2.7280686]
[1642979490979,0.20103676,2495.9,2495.5,2.7280686]
[1642979491277,0.20103676,2495.9,2494.1,0.491]
[1642979491278,5.00103676,2495.9,2494.1,0.491]
[1642979491538,5.00103676,2495.9,2493.3,3.5]
[1642979491539,1.29222369,2494.1,2493.3,3.5]
[1642979491734,0.20103,2494.6,2494.1,2.34738007]
[1642979491935,0.20103,2494.6,2492.7,0.13819997]
[1642979491936,4.991,2494.5,2492.7,0.13819997]
[1642979492135,2.7313056,2494.4,2492.7,0.13819997]
[1642979492332,0.50103,2494.4,2492.9,1.30804761]
[1642979492534,1.00338731,2494.8,2492.9,1.30804761]
[1642979492535,0.51238731,2494.8,2492.9,1.30804761]
[1642979492732,4.9856,2495.2,2493.0,0.64159224]
[1642979492932,3.7377,2495.7,2494.2,0.01287698]
[1642979493137,1.1678,2495.8,2494.8,0.01269439]
[1642979493338,7.5529756,2496.3,2494.4,1.42408595]
[1642979493339,1.13805996,2494.8,2494.4,1.42408595]
[1642979493534,0.20103,2495.7,2494.4,9.62e-06]
[1642979493741,0.20103,2495.7,2493.2,0.03376563]
[1642979493742,0.01210834,2495.4,2493.6,0.01228712]
[1642979493934,1.44939462,2494.1,2493.0,0.29849997]
[1642979494145,1.65042462,2494.1,2493.0,0.29849997]
[1642979494340,1.46218195,2494.1,2493.0,0.1603]
[1642979494740,0.20103,2494.0,2493.0,0.1603]
[1642979494947,1.44939462,2494.1,2492.8,1.37090204]
[1642979495382,2.7313056,2494.6,2493.4,0.01234499]
[1642979495588,3.92336584,2495.4,2493.4,0.01234499]
[1642979495589,0.70103,2494.9,2494.2,0.05275492]
[1642979495908,0.20103,2495.3,2494.0,0.01231983]
[1642979496086,4.08949264,2495.5,2494.0,0.01255241]
[1642979496087,0.20960858,2494.8,2494.0,0.01255241]
[1642979496285,0.20960858,2494.8,2492.5,0.43669994]
[1642979496286,0.41063858,2494.8,2492.5,0.27639994]
[1642979496493,0.41063858,2494.8,2493.1,1.40896099]
[1642979496494,5.71045014,2494.7,2493.1,1.40896099]
[1642979496688,0.20103,2494.6,2493.1,1.40896099]
[1642979497087,0.20103,2494.6,2493.0,1.10807553]
[1642979497488,0.20103,2494.6,2493.1,1.42650791]
[1642979497691,0.22197565,2494.8,2493.4,0.01236464]
[1642979497692,0.20960858,2494.8,2493.4,0.01236464]
[1642979497889,1.16922272,2494.3,2493.9,0.3032008]
[1642979498089,1.16922272,2494.3,2493.4,0.01236464]
[1642979498290,0.20103,2495.1,2493.4,0.01236464]
[1642979498502,1.1972269,2495.5,2495.0,1.26560575]
[1642979498694,0.20959297,2495.7,2495.0,1.26560575]
[1642979498894,0.491,2496.6,2495.6,0.01230431]
[1642979499137,0.20103,2497.1,2495.6,0.50330431]
[1642979499333,3.8238,2497.5,2495.6,0.50330431]
[1642979499334,1.30194746,2496.3,2495.6,0.50330431]
[1642979499536,1.30194746,2496.3,2494.8,7.94]
[1642979499537,1.50297746,2496.3,2494.8,7.94]
[1642979499736,1.5371399,2496.3,2494.6,0.13819997]
[1642979499934,2.54078956,2496.2,2494.6,0.13819997]
[1642979500132,1.5371399,2496.3,2494.6,0.13819997]
[1642979500133,0.20103,2496.1,2494.6,0.13819997]
[1642979500332,0.17573784,2495.0,2494.6,1.38250336]
[1642979500533,0.17573784,2495.0,2494.6,0.13819997]
[1642979500837,0.37676784,2495.0,2493.5,0.491]
[1642979501039,1.0,2494.9,2493.5,0.491]
[1642979501233,0.01234225,2494.9,2493.5,0.491]
[1642979501434,0.17573784,2495.0,2494.5,1.37194176]
[1642979501633,1.31826888,2494.8,2493.8,0.491]
[1642979501834,0.17573784,2495.0,2493.8,0.491]
[1642979502035,4.19287257,2495.8,2493.9,3.37251945]
[1642979502234,3.9789,2495.8,2494.0,0.491]
[1642979502437,3.9789,2495.8,2494.5,0.01238868]
[1642979502777,13.5804,2496.1,2493.5,7.95]
[1642979502778,1.29637374,2495.7,2494.9,1.49563187]
[1642979502976,1.29637374,2495.7,2493.7,0.80914726]
[1642979502977,1.37057118,2495.3,2494.5,0.491]
[1642979503176,0.01242012,2495.9,2494.5,0.491]
[1642979503584,2.57020708,2496.6,2495.2,0.01220746]
[1642979503782,0.01264239,2495.9,2494.7,0.02216803]
[1642979503978,0.01264239,2495.9,2494.4,0.491]
[1642979503979,0.20103,2495.8,2494.4,0.491]
[1642979504279,0.20103,2495.8,2494.6,1.30900028]
[1642979504280,0.18156167,2495.1,2494.6,1.30900028]
[1642979504478,0.18156167,2495.1,2494.1,0.5034331]
[1642979504687,0.38259167,2495.1,2493.3,0.0124279]
[1642979505081,0.38259167,2495.1,2494.3,0.01297004]
[1642979505082,0.18156167,2495.1,2494.3,0.01297004]
[1642979505280,0.20103,2495.9,2494.3,0.01297004]
[1642979505479,0.01254899,2496.1,2494.3,0.01297004]
[1642979505689,0.20103,2496.0,2494.3,0.01297004]
[1642979506084,0.01259637,2495.5,2493.5,1.42110779]
[1642979506280,2.36986003,2494.6,2493.5,1.42110779]
[1642979506543,2.36986003,2494.6,2493.2,1.68536093]
[1642979506740,2.36986003,2494.6,2493.5,1.40896099]
[1642979506741,2.57089003,2494.6,2493.5,1.40896099]
[1642979506943,0.20103,2494.5,2493.5,1.40896099]
[1642979507343,0.26301483,2493.5,2493.2,0.27639994]
[1642979507542,1.4377843,2493.7,2493.2,0.27639994]
[1642979507943,1.3377843,2493.7,2493.2,0.27639994]
[1642979508342,0.20103,2494.5,2493.2,0.27639994]
[1642979508548,5.0,2494.5,2493.4,0.01246827]
[1642979508750,0.50335007,2496.3,2494.2,1.28670809]
[1642979508953,4.0141472,2496.9,2494.6,0.01223345]
[1642979508954,1.04756716,2496.5,2494.6,0.01223345]
[1642979509143,0.01294876,2496.9,2494.6,0.01223345]
[1642979509144,0.01294876,2496.9,2494.7,0.491]
[1642979509344,0.01294876,2496.9,2495.2,0.01286116]
[1642979509542,0.01294876,2496.9,2495.7,1.33494689]
[1642979509543,1.52845901,2496.5,2495.7,1.33494689]
[1642979509744,1.3665827,2495.9,2495.3,0.76739994]
[1642979510142,1.3665827,2495.9,2495.3,0.75828271]
[1642979510374,0.01294876,2496.9,2495.3,0.75828271]
[1642979510375,0.20103,2497.1,2495.4,23.95]
[1642979510574,0.20103,2497.4,2495.5,3.02120708]
[1642979510772,0.20103,2497.4,2495.7,0.01269902]
[1642979510971,0.01263828,2497.0,2495.8,0.491]
[1642979511174,0.01238174,2496.3,2495.5,0.491]
[1642979511377,0.01238174,2496.3,2495.3,1.24635896]
[1642979511378,0.20103,2496.2,2495.3,1.24635896]
[1642979511576,0.01238174,2496.3,2495.3,1.24635896]
[1642979512072,0.21341174,2496.3,2495.3,1.24635896]
[1642979512272,1.21743648,2495.8,2495.4,1.19050666]
[1642979512471,1.21743648,2495.8,2494.8,0.491]
[1642979512673,1.16743648,2495.8,2494.8,0.491]
[1642979513476,1.16743648,2495.8,2494.7,1.27780648]
[1642979513477,0.26024882,2495.1,2494.7,1.27780648]
[1642979513781,3.28509639,2496.0,2494.4,1.29964311]
[1642979513782,1.29577549,2499.1,2494.8,2.55483454]
[1642979514048,5.65273051,2502.0,2498.7,0.06533863]
[1642979514249,6.0,2502.9,2501.8,0.99510673]
[1642979514250,0.8063,2502.9,2501.8,0.99510673]
[1642979514451,0.03277107,2503.7,2501.9,264.18002361]
[1642979514452,3.57850633,2503.5,2501.9,264.18002361]
[1642979514661,2.57748633,2503.5,2502.0,122.72307299]
[1642979514859,22.3708208,2508.6,2503.3,2.8063]
[1642979514860,0.47510804,2507.6,2503.3,2.8063]
[1642979515044,5.23862884,2508.6,2506.7,5.0]
[1642979515349,1.25945355,2512.6,2506.8,3.21209432]
[1642979515350,4.74223276,2512.3,2506.8,3.21209432]
[1642979515553,22.45855826,2513.8,2513.3,2.29074689]
[1642979515555,14.6292637,2513.6,2513.3,2.29074689]
[1642979515746,0.27386213,2514.3,2508.6,5.21957062]
[1642979515747,0.01346,2509.8,2508.7,0.109]
[1642979515948,0.95298578,2513.2,2510.3,0.07415232]
[1642979516152,13.73478728,2516.4,2513.4,23.95]
[1642979516349,9.44125806,2513.5,2513.4,21.80445531]
[1642979516604,0.221149,2518.9,2515.8,0.3033]
[1642979516605,0.8162852,2518.4,2515.8,0.3033]
[1642979516756,0.6162852,2518.4,2516.3,8.53983396]
[1642979516960,0.141149,2518.9,2516.4,40.37860453]
[1642979516961,0.04661072,2517.1,2516.4,40.37860453]
[1642979517161,1.44059656,2518.3,2516.5,27.70035664]
[1642979517356,2.94035941,2518.3,2518.2,0.06782215]
[1642979517552,1.95142285,2518.3,2516.3,0.32170201]
[1642979517809,1.95142285,2518.3,2515.8,0.37422532]
[1642979517810,6.80848615,2518.2,2516.4,5.0]
[1642979517995,2.5,2517.1,2516.7,0.01228743]
[1642979518203,0.13819997,2518.3,2517.0,5.0]
[1642979518204,0.59261927,2517.5,2517.0,5.0]
[1642979518500,0.59261927,2517.5,2516.0,4.00272185]
[1642979518501,0.12147215,2519.5,2517.1,19.67627743]
[1642979518702,0.01250641,2519.8,2517.1,19.59667743]
[1642979518904,8.25,2519.4,2517.2,0.03400908]
[1642979519120,8.25,2519.4,2517.6,0.01244685]
[1642979519121,0.13819997,2519.3,2517.6,0.01244685]
[1642979519305,0.13819997,2519.3,2517.9,7.906]
[1642979519506,0.13819997,2519.3,2517.6,0.01216737]
[1642979519697,0.13819997,2519.3,2515.6,2.645]
[1642979519698,0.13819997,2519.3,2517.0,0.01234522]
[1642979519901,0.13819997,2519.3,2517.0,0.01200436]
[1642979519902,0.00241586,2517.4,2517.0,0.01200436]
[1642979520105,0.13819997,2519.3,2517.1,0.13819997]
[1642979520301,0.0398,2519.7,2516.8,0.01243603]
[1642979520502,0.02155001,2516.3,2515.7,23.98549316]
[1642979520703,298.32504688,2520.0,2516.1,0.0228]
[1642979520897,0.01290796,2519.4,2516.2,0.3573]
[1642979521102,0.01290796,2519.4,2516.2,8.3585]
[1642979521103,1.61002615,2518.9,2516.2,8.3585]
[1642979521302,0.30703,2518.8,2515.8,0.13819997]
[1642979521539,0.1088,2518.8,2515.3,8.25]
[1642979521745,0.1088,2518.8,2518.0,5.0]
[1642979521935,0.1088,2518.8,2515.4,0.1589]
[1642979521936,0.1588,2519.4,2515.4,0.19425144]
[1642979522138,0.1588,2519.9,2517.9,0.43443508]
[1642979522441,0.1588,2519.9,2515.3,8.25]
[1642979522442,5.0,2518.5,2518.2,8.14995197]
[1642979522649,0.1588,2518.4,2517.1,0.0124828]
[1642979522843,5.0,2518.5,2517.1,0.0124828]
[1642979523037,0.1588,2518.4,2518.1,5.609e-05]
[1642979523237,0.1588,2518.4,2517.3,0.01240268]
[1642979523238,7.3,2518.3,2517.3,0.01240268]
[1642979523440,4.7,2517.8,2517.3,2.68e-06]
[1642979523647,0.1588,2517.7,2517.3,2.68e-06]
[1642979523839,4.7,2517.4,2517.3,2.68e-06]
[1642979524041,0.1588,2517.4,2514.6,5.29362175]
[1642979524248,1.1314,2519.8,2517.3,0.01298427]
[1642979524249,4.7,2517.8,2517.3,0.01298427]
[1642979524446,0.1589,2518.4,2517.4,3.502e-05]
[1642979524447,0.1588,2517.7,2517.4,3.502e-05]
[1642979524644,4.7,2517.5,2516.2,0.01224133]
[1642979524841,1.1314,2519.8,2515.6,3.38359578]
[1642979524842,0.1589,2517.4,2515.6,3.38359578]
[1642979525046,0.00226493,2518.2,2515.7,21.42763613]
[1642979525291,0.1589,2518.1,2515.7,2.25552832]
[1642979525496,0.1589,2518.1,2516.4,0.01244379]
[1642979525695,0.1589,2518.1,2516.0,4.8593]
[1642979525696,0.33642997,2518.0,2516.0,4.8593]
[1642979525894,0.1589,2517.9,2517.3,8.17774216]
[1642979526095,1.43969052,2517.8,2516.2,0.01200853]
[1642979526296,1.15897961,2517.3,2516.2,0.01200853]
[1642979526496,1.15897961,2517.3,2514.9,0.1589]
[1642979526497,0.35713,2517.2,2516.8,7.94]
[1642979526696,7.45,2517.1,2516.6,3.134e-05]
[1642979526901,0.1589,2517.0,2516.6,3.134e-05]
[1642979527096,0.19823,2517.6,2515.8,0.0125377]
[1642979527304,0.35713,2517.5,2516.7,0.01218355]
[1642979527503,8.185716,2516.8,2515.8,0.01265055]
[1642979527707,0.35713,2516.7,2515.8,0.01265055]
[1642979527898,0.1589,2516.7,2516.3,0.01244561]
[1642979528102,0.1589,2516.7,2515.4,0.01261015]
[1642979528103,0.19823,2516.7,2515.4,0.01261015]
[1642979528300,0.1589,2516.6,2515.6,0.01288751]
[1642979528500,1.25794513,2516.6,2515.6,0.01288751]
[1642979528705,0.1589,2516.6,2515.7,3.115e-05]
[1642979528898,0.1589,2516.6,2513.7,6.2033]
[1642979528899,0.19823,2516.5,2513.7,6.2033]
[1642979529156,1.21703887,2516.2,2513.7,6.2033]
[1642979529356,0.35723,2516.1,2513.7,6.16599256]
[1642979529557,0.19823,2516.1,2514.3,7.95]
[1642979529757,1.32887903,2515.7,2514.7,0.01213947]
[1642979529956,0.159,2515.6,2514.7,0.01213947]
[1642979530456,0.19823,2516.9,2514.1,3.38451192]
[1642979530457,0.12744926,2517.2,2516.8,0.64086794]
[1642979530657,0.23848183,2517.1,2516.7,0.01290605]
[1642979530859,0.1589,2517.0,2516.7,0.01290605]
[1642979531057,0.1589,2517.1,2516.0,3.47585365]
[1642979531259,4.926e-05,2517.2,2516.9,0.0124385]
[1642979531463,0.19864,2519.7,2517.1,0.01262368]
[1642979531659,0.19864,2521.3,2518.2,0.01278287]
[1642979531859,0.19864,2521.2,2518.4,0.01226627]
[1642979532065,258.63989688,2520.0,2519.2,0.01225373]
[1642979532256,258.63989688,2520.0,2519.7,0.01240777]
[1642979532257,219.42641959,2520.0,2519.7,0.01240777]
[1642979532460,175.40040236,2520.0,2519.7,0.01240777]
[1642979532660,116.31880595,2520.0,2519.9,1.21577375]
[1642979532887,116.31880595,2520.0,2519.9,30.52638533]
[1642979532888,56.10105365,2520.0,2519.9,30.52638533]
[1642979533092,56.10105365,2520.0,2519.9,71.62816956]
[1642979533093,10.44670603,2520.0,2519.9,71.62816956]
[1642979533290,0.19864,2523.2,2520.0,7.85]
[1642979533485,3.0,2522.9,2521.2,0.03259325]
[1642979533690,3.0,2522.9,2522.4,0.01210677]
[1642979533691,0.086,2522.8,2522.4,0.01210677]
[1642979533892,11.4212,2523.1,2522.6,0.01252753]
[1642979534090,11.4212,2523.1,2522.7,18.35894822]
[1642979534289,11.4212,2523.1,2522.8,0.1236128]
[1642979534490,0.01225316,2525.2,2523.0,2.71238427]
[1642979534698,0.99172,2529.6,2524.2,0.01233532]
[1642979534699,0.19864,2526.0,2524.2,0.01233532]
[1642979534894,5.0,2527.5,2524.4,7.85]
[1642979534895,0.04864,2527.0,2524.4,7.85]
[1642979535094,0.01221953,2526.9,2524.8,0.01274272]
[1642979535293,0.01218728,2526.8,2524.9,53.73353272]
[1642979535494,0.19783,2526.7,2525.5,7.7387]
[1642979535698,0.19783,2526.7,2524.1,0.19798]
[1642979535890,8.88424358,2526.8,2524.1,0.19798]
[1642979535891,1.23500238,2526.3,2524.3,5.0]
[1642979536092,0.18486001,2526.2,2523.9,0.01298695]
[1642979536297,0.18486001,2526.2,2523.4,2.55483454]
[1642979536298,0.04585855,2526.1,2523.4,2.55483454]
[1642979536526,0.04585855,2526.1,2521.5,2.30647713]
[1642979536527,0.01209241,2524.9,2522.4,1.60694099]
[1642979536727,0.01209241,2524.9,2520.2,0.99114]
[1642979536728,1.24427243,2522.6,2521.6,2.55483454]
[1642979536931,0.01228277,2522.1,2521.1,5.0]
[1642979537127,0.13819997,2522.5,2520.2,0.18315]
[1642979537333,0.19822,2522.4,2519.9,17.58890532]
[1642979537527,0.19822,2522.4,2518.1,3.37967805]
[1642979537528,0.01214529,2521.2,2518.7,5.0]
[1642979537726,0.01214529,2521.2,2518.4,1.0]
[1642979537727,5.0,2520.9,2518.4,1.0]
[1642979537928,0.0479282,2519.4,2518.4,1.0]
[1642979538132,0.01242433,2519.7,2519.3,0.03983694]
[1642979538331,0.01242433,2519.7,2517.2,0.18728]
[1642979538332,1.74273852,2520.0,2517.2,1.39076531]
[1642979538531,6.69273852,2520.0,2518.9,7.272]
[1642979538834,6.69273852,2520.0,2517.3,2.55483454]
[1642979538835,5.0,2519.2,2517.3,2.55483454]
[1642979539033,5.0,2518.4,2517.4,0.473]
[1642979539236,1.45705782,2520.0,2516.1,2.55483454]
[1642979539237,1.17370764,2516.8,2516.1,1.35340923]
[1642979539438,5.47709709,2516.7,2513.9,2.55483454]
[1642979539635,5.0,2516.4,2513.9,2.50483454]
[1642979539840,5.0,2515.9,2514.0,0.491]
[1642979540040,5.27887709,2516.7,2513.0,1.39275766]
[1642979540041,1.26176424,2514.4,2513.0,1.39275766]
[1642979540293,0.01292859,2514.8,2513.0,1.39275766]
[1642979540591,6.7352,2515.8,2515.6,2.55811574]
[1642979540790,0.01252613,2515.7,2515.6,2.44038082]
[1642979541089,6.7352,2515.8,2515.6,9.06338082]
[1642979541291,6.7352,2515.8,2515.7,6.132]
[1642979541488,6.7352,2515.8,2515.7,11.6321]
[1642979541688,0.13819997,2516.7,2515.7,11.6321]
[1642979541892,0.22995,2517.3,2515.7,0.491]
[1642979542093,1.2009,2518.3,2515.8,0.18728]
[1642979542290,0.01290528,2518.7,2515.8,0.18728]
[1642979542291,0.01231988,2518.1,2516.8,7.96]
[1642979542496,0.01230526,2520.1,2518.0,6.132]
[1642979542699,5.234e-05,2519.9,2519.8,6.132]
[1642979542895,5.234e-05,2519.9,2519.8,15.61028]
[1642979543099,0.1987,2523.1,2519.8,15.61028]
[1642979543100,0.1987,2523.1,2519.9,8.8]
[1642979543299,0.01253801,2524.4,2519.9,8.8]
[1642979543300,0.01252652,2521.9,2520.0,2.74211454]
[1642979543494,1.43479814,2523.6,2521.3,7.96]
[1642979543495,0.1987,2523.1,2521.3,7.96]
[1642979543895,7.229e-05,2521.9,2521.3,7.96]
[1642979544138,8.415e-05,2522.4,2521.4,0.18728]
[1642979544344,7.869e-05,2523.6,2521.7,5.0]
[1642979544535,0.04547388,2524.2,2522.1,5.0]
[1642979544738,0.01255413,2527.4,2522.6,16.75]
[1642979544739,0.1987,2527.1,2522.6,16.75]
[1642979544939,0.01042287,2525.6,2524.7,8.9e-07]
[1642979545146,0.01237037,2524.8,2524.7,8.9e-07]
[1642979545337,0.1987,2525.2,2524.7,8.9e-07]
[1642979545638,0.0364045,2525.2,2524.7,8.9e-07]
[1642979545839,0.01258127,2524.0,2522.2,2.60752913]
[1642979546038,2.189e-05,2524.1,2522.7,5.0]
[1642979546239,5.19954526,2527.5,2523.9,5.0]
[1642979546240,5.03864,2527.5,2523.9,5.0]
[1642979546446,5.03864,2527.5,2524.9,5.0]
[1642979546637,4.93864,2527.5,2526.2,7.9]
[1642979546836,4.93864,2527.5,2524.7,7.94]
[1642979546837,8.66281051,2526.3,2525.2,5.0]
[1642979547036,8.6251981,2526.3,2524.9,0.33620997]
[1642979547238,0.01219649,2525.7,2524.9,0.13819997]
[1642979547442,7.1,2525.0,2524.3,0.0008]
[1642979547649,0.0120774,2524.4,2524.3,0.0008]
[1642979548287,0.04,2525.8,2524.3,0.0008]
[1642979548690,0.04,2525.8,2524.4,40.07891399]
[1642979548890,0.0001,2525.8,2524.5,81.50706677]
[1642979549093,0.0001,2525.8,2524.4,0.04028418]
[1642979549291,0.04698097,2525.8,2524.4,0.04028418]
[1642979549496,1.08604354,2524.2,2523.4,0.07928415]
[1642979549693,0.01289939,2524.6,2523.0,1.38883377]
[1642979549694,1.33702317,2523.3,2523.0,3.377e-05]
[1642979549893,0.17380465,2524.6,2522.7,0.01210532]
[1642979549894,8.92374394,2523.1,2522.7,0.01210532]
[1642979550097,8.92374394,2523.1,2520.5,3.377e-05]
[1642979550098,0.01213829,2522.8,2520.5,3.377e-05]
[1642979550305,1.2799009,2522.7,2520.8,0.19801]
[1642979550493,0.01281664,2522.2,2520.8,0.19801]
[1642979550693,0.01281664,2522.2,2520.5,3.377e-05]
[1642979550694,0.1125667,2522.3,2521.0,8.75]
[1642979550899,0.1125667,2522.3,2521.1,0.19834]
[1642979551094,0.01228852,2523.1,2521.1,0.19834]
[1642979551301,0.01225152,2523.7,2521.4,0.01284949]
[1642979551567,2.47603361,2524.5,2522.0,0.0120211]
[1642979551754,4.46699268,2524.6,2521.7,0.19834]
[1642979551755,0.01243214,2523.9,2521.7,0.19834]
[1642979552155,0.01243214,2523.9,2519.5,1.78808269]
[1642979552156,5.0,2522.8,2520.5,0.19898]
[1642979552354,5.0,2522.8,2517.9,0.2495]
[1642979552355,0.01244064,2521.6,2518.3,0.19898]
[1642979552554,2.76584294,2522.7,2519.7,4.6596]
[1642979552555,1.2799009,2520.9,2519.7,4.6596]
[1642979552751,1.2799009,2520.9,2517.9,0.2495]
[1642979552752,0.01201794,2520.1,2518.0,2.55483454]
[1642979552960,0.01201794,2520.1,2517.9,0.39848]
[1642979552961,1.27205093,2519.1,2517.9,0.39848]
[1642979553151,0.19811,2519.6,2519.1,3.81615279]
[1642979553453,0.01275434,2519.5,2519.1,3.81615279]
[1642979553652,0.01243254,2520.7,2519.2,0.19898]
[1642979553954,0.01258379,2521.6,2520.0,0.79056302]
[1642979554155,2.75294454,2522.7,2520.1,0.19898]
[1642979554457,3.5898,2522.8,2520.2,0.232]
[1642979554655,3.5898,2522.8,2520.3,0.14898]
[1642979554954,3.5898,2522.8,2520.6,5.0]
[1642979555153,3.5898,2522.8,2520.7,2.70381454]
[1642979555394,3.5898,2522.8,2521.0,5.0]
[1642979555596,3.5898,2522.8,2520.2,31.89]
[1642979555597,0.11721458,2524.1,2521.4,5.0]
[1642979555791,0.01213922,2523.5,2521.5,2.70381454]
[1642979555996,0.01213922,2523.5,2521.5,0.14898]
[1642979556190,0.01213922,2523.5,2521.6,0.491]
[1642979556392,0.1585,2524.4,2522.3,5.0]
[1642979556594,0.01231653,2525.2,2523.1,0.01275712]
[1642979556794,0.1584,2525.7,2523.2,0.54093274]
[1642979556995,8.2555,2527.4,2524.6,5.0]
[1642979556996,0.01252672,2526.5,2524.6,5.0]
[1642979557196,0.01252672,2526.5,2523.6,0.01276449]
[1642979557197,0.01252672,2526.5,2524.9,0.09545565]
[1642979557391,0.01252672,2526.5,2525.1,8.7]
[1642979557392,0.00252672,2526.5,2525.1,8.7]
[1642979557597,0.00252672,2526.5,2524.4,7.39004905]
[1642979557598,0.1583,2526.4,2524.2,0.01291069]
[1642979557795,1.23849881,2525.0,2523.6,1.38927479]
[1642979557994,0.1584,2524.9,2523.6,1.38927479]
[1642979558199,0.491,2526.8,2523.2,0.02563327]
[1642979558200,0.01297375,2525.2,2523.2,0.02563327]
[1642979558401,0.00673696,2526.3,2523.2,0.02563327]
[1642979558402,0.01249679,2527.1,2525.1,5.0]
[1642979558595,13.48843747,2530.4,2524.6,8.7]
[1642979558596,92.8896407,2530.0,2527.1,8.7]
[1642979558794,26.92091415,2530.0,2529.4,5.0357832]
[1642979559043,22.3672,2531.6,2529.9,5.0]
[1642979559245,20.9357,2531.6,2530.4,0.06318561]
[1642979559444,0.01561046,2532.0,2530.5,6.50703898]
[1642979559650,13.3077,2532.7,2530.5,2.50431713]
[1642979559651,24.88566187,2532.2,2530.5,2.50431713]
[1642979559845,24.88566187,2532.2,2530.6,0.19758]
[1642979559846,2.52732596,2532.1,2530.6,0.19758]
[1642979560047,2.52732596,2532.1,2530.4,0.192848]
[1642979560244,0.00989182,2532.0,2530.6,0.01270327]
[1642979560445,0.01229774,2531.7,2529.8,0.01219272]
[1642979560647,1.44680529,2531.5,2529.8,0.01219272]
[1642979560853,0.01229774,2531.7,2529.8,0.01219272]
[1642979561046,0.01229774,2531.7,2529.9,0.08128833]
[1642979561247,2.55483454,2531.7,2530.0,0.10797]
[1642979561450,0.0126821,2531.0,2529.1,4.001e-05]
[1642979561748,0.0126821,2531.0,2527.5,2.30647713]
[1642979561749,8.95,2529.7,2527.5,0.00524001]